lending/lending_fUSD_20250131
["ID","MTS","AMOUNT","RATE_DAILY","PERIOD"]
[351031802,1738301467328,-1437.25,0.00019726,3]
[351031803,1738301467339,-2277.22,0.00019726,3]
[351031804,1738301467351,-151.0,0.00019726,2]
[351031805,1738301467362,-500.0,0.00019726,3]
[351031806,1738301467372,-5475.11,0.00019726,3]
[351031807,1738301467383,-500.0,0.00019726,3]
[351031808,1738301467396,-500.0,0.00019726,3]
[351031809,1738301467407,-500.0,0.00019726,3]
[351031810,1738301467418,-500.0,0.00019726,3]
[351031811,1738301467433,-3332.44,0.00019726,3]
[351031812,1738301467443,-1677.96,0.00019726,3]
[351031813,1738301467454,-500.0,0.00019726,3]
[351031814,1738301467465,-500.0,0.00019726,3]
[351031815,1738301467475,-824.87,0.00019726,3]
[351031816,1738301467487,-823.48,0.00019726,3]
[351031817,1738301467497,-500.0,0.00019726,3]
[351031818,1738301467508,-1897.24,0.00019726,3]
[351031819,1738301467519,-18202.79,0.00019726,3]
[351031820,1738301467530,-500.0,0.00019726,3]
[351031821,1738301467540,-500.0,0.00019726,3]
[351031822,1738301467551,-747.5268268,0.00019726,3]
[351031823,1738301467578,-768.8331732,0.00019726,3]
[351031824,1738301467589,-1467.6,0.00019726,3]
[351031825,1738301467601,-500.0,0.00019726,3]
[351031826,1738301467614,-1520.66,0.00019726,3]
[351031827,1738301467624,-486.8812372,0.00019726,3]
[351031828,1738301467953,-1023.05,0.00018795,2]
[351031829,1738301468008,-25157.24641547,0.00018795,2]
[351031830,1738301468020,-990.05614358,0.00018795,2]
[351031831,1738301468032,-9919.15744,0.00018795,2]
[351031832,1738301468045,-2705.67524563,0.00018795,2]
[351031833,1738301468058,-10204.81475532,0.00018795,2]
[351031834,1738301468072,-1071.3887628,0.00019726,3]
[351031835,1738301468083,-500.0,0.00019726,3]
[351031836,1738301468093,-3293.33,0.00019726,3]
[351031837,1738301468104,-1169.06,0.00019726,3]
[351031838,1738301468117,-500.0,0.00019726,3]
[351031839,1738301468129,-3397.40648188,0.00019726,3]
[351031840,1738301470411,307.48,0.00016652,2]
[351031842,1738301878980,160.85,0.00010137,2]
[351031846,1738302405137,-168.75,0.00014102,2]
[351031847,1738302405163,-150.0,0.00014807,2]
[351031848,1738302405189,-156.89489231,0.00015397,2]
[351031850,1738302429106,6329079.17126766,0.00023,120]
[351031851,1738302568130,-193.93510769,0.00015397,2]
[351031856,1738302631840,-150.0,0.00015512,2]
[351031857,1738302631850,-191.6020842,0.00016,2]
[351031858,1738302631860,-1332.0,0.000161,2]
[351031859,1738302631871,-160.85,0.00016813,2]
[351031860,1738302631882,-9919.15744,0.00016936,2]
[351031861,1738302631899,-150.0,0.00016936,2]
[351031862,1738302631909,-150.0,0.00017063,2]
[351031863,1738302631919,-739.33,0.00017181,2]
[351031864,1738302631929,-2995.14086636,0.00017207,2]
[351031865,1738302631943,-267.5499995,0.00017207,2]
[351031866,1738302631955,-108.18913414,0.00017207,2]
[351031867,1738302631966,-270.95,0.00017225,2]
[351031868,1738302631977,-370.73,0.00017237,2]
[351031869,1738302631987,-1000.0,0.0001724,2]
[351031870,1738302631998,-342.53,0.00017243,2]
[351031871,1738302632009,-725.9,0.00017248,2]
[351031872,1738302632019,-631.67010603,0.00017248,2]
[351031873,1738302632041,-1955.82951647,0.00017248,2]
[351031874,1738302632053,-7521.6303775,0.00017248,2]
[351031875,1738302632063,-947.25,0.00017266,2]
[351031876,1738302632073,-615.6,0.00017385,2]
[351031877,1738302632083,-150.0,0.00017385,2]
[351031878,1738302632093,-243.53,0.0001739,2]
[351031879,1738302632103,-847.22,0.00017428,2]
[351031880,1738302632113,-998.0,0.00017483,2]
[351031881,1738302632124,-669.48,0.00017513,2]
[351031882,1738302632135,-250.0,0.00017538,2]
[351031883,1738302632145,-405.0,0.00017563,2]
[351031884,1738302632155,-500.0,0.00017564,2]
[351031885,1738302632166,-500.0,0.00017564,2]
[351031886,1738302632176,-459.85,0.00017601,2]
[351031887,1738302632186,-11759.41971578,0.00017619,2]
[351031888,1738302632197,-23900.0,0.0001762,2]
[351031889,1738302632207,-249.04,0.00017621,2]
[351031890,1738302632217,-1500.0,0.00017621,2]
[351031891,1738302632228,-350.83,0.0001766,2]
[351031892,1738302632238,-151.05,0.00017665,30]
[351031893,1738302632249,-788.716,0.00017774,2]
[351031894,1738302632259,-322.73,0.00018404,2]
[351031895,1738302632268,-322.73,0.00018409,2]
[351031896,1738302632279,-322.73,0.00018414,2]
[351031897,1738302632289,-322.73,0.00018419,2]
[351031898,1738302632298,-322.73,0.00018423,2]
[351031899,1738302632309,-322.73,0.00018428,2]
[351031900,1738302632319,-322.73,0.00018433,2]
[351031901,1738302632328,-322.73,0.00018438,2]
[351031902,1738302632338,-322.73,0.00018443,2]
[351031903,1738302632348,-322.73,0.00018448,2]
[351031904,1738302632358,-322.73,0.00018452,2]
[351031905,1738302632368,-322.73,0.00018457,2]
[351031906,1738302632378,-322.73,0.00018462,2]
[351031907,1738302632388,-322.73,0.00018467,2]
[351031908,1738302632403,-322.73,0.00018472,2]
[351031909,1738302632412,-322.73,0.00018477,2]
[351031910,1738302632422,-322.73,0.00018482,2]
[351031911,1738302632432,-322.73,0.00018486,2]
[351031912,1738302632442,-322.73,0.00018491,2]
[351031913,1738302632453,-322.73,0.00018496,2]
[351031914,1738302632463,-1852.42,0.00018526,2]
[351031915,1738302632473,-1000.0,0.00018578,2]
[351031916,1738302632482,-500.0,0.0001866,2]
[351031917,1738302632492,-1616.7581,0.00019019,2]
[351031918,1738302632504,-1026.9321,0.00019019,2]
[351031919,1738302632514,-175.52515863,0.00019077,2]
[351031920,1738302632525,-2323.80576174,0.00019078,2]
[351031921,1738302632536,-269.3414245,0.00019078,2]
[351031922,1738302632547,-6619.1158,0.00019078,2]
[351031923,1738302632557,-2983.5381,0.00019078,2]
[351031924,1738302632568,-2500.0,0.00019078,2]
[351031925,1738302632579,-2021.0,0.00019119,2]
[351031927,1738302632590,-1271.0,0.00019119,2]
[351031929,1738302632601,-150.0,0.00019119,2]
[351031931,1738302632612,-568.0,0.00019119,2]
[351031933,1738302632624,-637.0,0.00019119,2]
[351031934,1738302632634,-1867.0,0.00019119,2]
[351031935,1738302632644,-907.0,0.00019119,2]
[351031936,1738302632654,-1260.221,0.00019119,2]
[351031937,1738302632664,-782.0,0.00019119,2]
[351031938,1738302632673,-2952.0,0.00019119,2]
[351031939,1738302632683,-538.0,0.00019119,2]
[351031940,1738302632693,-3908.0,0.00019119,2]
[351031942,1738302632703,-150.0,0.00019119,2]
[351031944,1738302632713,-150.0,0.00019119,2]
[351031946,1738302632723,-150.0,0.00019119,2]
[351031948,1738302632733,-269.34142449,0.00019147,2]
[351031950,1738302632744,-5000.0,0.0001915,4]
[351031952,1738302632754,-1000.0,0.00019152,2]
[351031954,1738302632764,-2993.8987508,0.00019177,2]
[351031955,1738302632775,-2993.8987508,0.00019177,2]
[351031956,1738302632785,-2993.8987508,0.00019177,2]
[351031957,1738302632795,-2993.8987508,0.00019177,2]
[351031958,1738302632807,-2993.8987508,0.00019177,2]
[351031959,1738302632817,-2993.8987508,0.00019177,2]
[351031960,1738302632827,-2993.8987508,0.00019177,2]
[351031961,1738302632838,-2993.8987508,0.00019177,2]
[351031962,1738302632848,-2993.8987508,0.00019177,2]
[351031963,1738302632858,-2993.8987508,0.00019177,2]
[351031964,1738302632867,-2993.8987508,0.00019177,2]
[351031965,1738302632877,-2993.8987508,0.00019177,2]
[351031966,1738302632887,-2993.8987508,0.00019177,2]
[351031967,1738302632898,-2993.8987508,0.00019177,2]
[351031968,1738302632912,-2993.8987508,0.00019177,2]
[351031969,1738302632922,-2993.8987508,0.00019177,2]
[351031970,1738302632932,-2993.8987508,0.00019177,2]
[351031971,1738302632942,-2993.8987508,0.00019177,2]
[351031972,1738302632952,-2993.8987508,0.00019177,2]
[351031973,1738302632962,-2993.8987508,0.00019177,2]
[351031974,1738302632972,-2993.8987508,0.00019177,2]
[351031975,1738302632982,-2993.8987508,0.00019177,2]
[351031976,1738302632991,-2993.8987508,0.00019177,2]
[351031977,1738302633000,-2993.8987508,0.00019177,2]
[351031978,1738302633010,-2993.8987508,0.00019177,2]
[351031979,1738302633020,-2993.8987508,0.00019177,2]
[351031980,1738302633029,-2993.8987508,0.00019177,2]
[351031981,1738302633039,-2993.8987508,0.00019177,2]
[351031982,1738302633049,-2993.8987508,0.00019177,2]
[351031983,1738302633059,-2993.8987508,0.00019177,2]
[351031984,1738302633069,-2993.8987508,0.00019177,2]
[351031985,1738302633078,-2993.8987508,0.00019177,2]
[351031986,1738302633089,-2993.8987508,0.00019177,2]
[351031987,1738302633099,-2993.8987508,0.00019177,2]
[351031988,1738302633110,-2993.8987508,0.00019177,2]
[351031989,1738302633121,-2993.8987508,0.00019177,2]
[351031990,1738302633132,-2993.8987508,0.00019177,2]
[351031991,1738302633142,-2993.8987508,0.00019177,2]
[351031992,1738302633153,-2993.8987508,0.00019177,2]
[351031993,1738302633164,-2993.8987508,0.00019177,2]
[351031994,1738302633174,-2993.8987508,0.00019177,2]
[351031995,1738302633184,-2993.8987508,0.00019177,2]
[351031996,1738302633195,-2993.8987508,0.00019177,2]
[351031997,1738302633205,-2993.8987508,0.00019177,2]
[351031998,1738302633215,-2993.8987508,0.00019177,2]
[351031999,1738302633225,-2993.8987508,0.00019177,2]
[351032000,1738302633237,-2993.8987508,0.00019177,2]
[351032001,1738302633250,-2993.8987508,0.00019177,2]
[351032002,1738302633260,-2993.8987508,0.00019177,2]
[351032003,1738302633271,-2993.8987508,0.00019177,2]
[351032004,1738302633281,-2993.8987508,0.00019177,2]
[351032005,1738302633291,-2993.8987508,0.00019177,2]
[351032006,1738302633302,-2993.8987508,0.00019177,2]
[351032007,1738302633312,-2993.8987508,0.00019177,2]
[351032008,1738302633323,-2993.8987508,0.00019177,2]
[351032009,1738302633334,-2993.8987508,0.00019177,2]
[351032010,1738302633344,-2993.8987508,0.00019177,2]
[351032011,1738302633354,-2939.46422806,0.00019177,2]
[351032012,1738302633364,-2939.46422806,0.00019177,2]
[351032013,1738302633374,-2939.46422806,0.00019177,2]
[351032014,1738302633384,-2939.46422806,0.00019177,2]
[351032015,1738302633394,-2939.46422806,0.00019177,2]
[351032016,1738302633404,-2939.46422806,0.00019177,2]
[351032017,1738302633413,-2939.46422806,0.00019177,2]
[351032018,1738302633423,-2939.46422806,0.00019177,2]
[351032019,1738302633433,-2939.46422806,0.00019177,2]
[351032020,1738302633444,-2939.46422806,0.00019177,2]
[351032021,1738302633454,-2939.46422806,0.00019177,2]
[351032022,1738302633465,-2939.46422806,0.00019177,2]
[351032023,1738302633475,-2939.46422806,0.00019177,2]
[351032024,1738302633485,-2939.46422806,0.00019177,2]
[351032025,1738302633495,-2939.46422806,0.00019177,2]
[351032026,1738302633506,-2939.46422806,0.00019177,2]
[351032027,1738302633517,-2939.46422806,0.00019177,2]
[351032028,1738302633533,-2939.46422806,0.00019177,2]
[351032029,1738302633543,-2939.46422806,0.00019177,2]
[351032030,1738302633553,-2939.46422806,0.00019177,2]
[351032031,1738302633565,-2939.46422806,0.00019177,2]
[351032032,1738302633575,-2939.46422806,0.00019177,2]
[351032033,1738302633598,-2939.46422806,0.00019177,2]
[351032034,1738302633610,-2939.46422806,0.00019177,2]
[351032035,1738302633621,-2939.46422806,0.00019177,2]
[351032036,1738302633631,-2939.46422806,0.00019177,2]
[351032037,1738302633641,-2939.46422806,0.00019177,2]
[351032038,1738302633651,-2939.46422806,0.00019177,2]
[351032039,1738302633662,-2939.46422806,0.00019177,2]
[351032040,1738302633672,-2939.46422806,0.00019177,2]
[351032041,1738302633683,-2939.46422806,0.00019177,2]
[351032042,1738302633693,-2939.46422806,0.00019177,2]
[351032043,1738302633704,-2939.46422805,0.00019177,2]
[351032044,1738302633715,-595.1,0.00019178,2]
[351032045,1738302633725,-500.0,0.00019178,2]
[351032046,1738302633736,-500.0,0.00019178,2]
[351032047,1738302633747,-2930.412694,0.00019178,2]
[351032048,1738302633758,-153.54865,0.00019178,2]
[351032049,1738302633769,-156.16374,0.00019178,2]
[351032050,1738302633780,-500.0,0.00019178,2]
[351032051,1738302633791,-2043.192843,0.00019178,2]
[351032052,1738302633801,-500.0,0.00019178,2]
[351032053,1738302633812,-500.0,0.00019178,2]
[351032054,1738302633822,-500.0,0.00019178,2]
[351032055,1738302633832,-627.46,0.00019178,2]
[351032056,1738302633842,-500.0,0.00019178,2]
[351032057,1738302633852,-603.44,0.00019178,2]
[351032058,1738302633862,-500.0,0.00019178,2]
[351032059,1738302633872,-500.0,0.00019178,2]
[351032060,1738302633882,-616.2,0.00019178,2]
[351032061,1738302633892,-500.0,0.00019178,2]
[351032062,1738302633902,-500.0,0.00019178,2]
[351032063,1738302633912,-500.0,0.00019178,2]
[351032064,1738302633923,-704.16,0.00019178,2]
[351032065,1738302633933,-500.0,0.00019178,2]
[351032066,1738302633943,-604.89,0.00019178,14]
[351032067,1738302633954,-500.0,0.00019178,2]
[351032068,1738302633964,-500.0,0.00019178,2]
[351032069,1738302633974,-500.0,0.00019178,2]
[351032070,1738302633984,-500.0,0.00019178,2]
[351032071,1738302633994,-500.0,0.00019178,2]
[351032072,1738302634004,-500.0,0.00019178,2]
[351032073,1738302634014,-500.0,0.00019178,2]
[351032074,1738302634024,-500.0,0.00019178,2]
[351032075,1738302634034,-661.35,0.00019178,2]
[351032076,1738302634044,-631.72,0.00019178,2]
[351032077,1738302634054,-500.0,0.00019178,2]
[351032078,1738302634065,-500.0,0.00019178,2]
[351032079,1738302634075,-707.95,0.00019178,2]
[351032080,1738302634086,-500.0,0.00019178,2]
[351032081,1738302634099,-500.0,0.00019178,2]
[351032082,1738302634111,-614.05,0.00019178,2]
[351032083,1738302634121,-500.0,0.00019178,2]
[351032084,1738302634131,-434.14563566,0.00019178,2]
[351032085,1738302634141,-502.8969672,0.00019178,2]
[351032086,1738302634152,-614.76,0.00019178,2]
[351032087,1738302634162,-500.0,0.00019178,2]
[351032088,1738302634172,-500.0,0.00019178,2]
[351032089,1738302634182,-500.0,0.00019178,2]
[351032090,1738302634192,-500.0,0.00019178,2]
[351032091,1738302634203,-500.0,0.00019178,2]
[351032092,1738302634214,-561.64,0.00019178,2]
[351032093,1738302634226,-500.0,0.00019178,2]
[351032094,1738302634236,-500.0,0.00019178,2]
[351032095,1738302634246,-500.0,0.00019178,2]
[351032096,1738302634256,-503.9,0.00019178,2]
[351032097,1738302634266,-500.0,0.00019178,2]
[351032098,1738302634277,-602.64,0.00019178,2]
[351032099,1738302634288,-500.0,0.00019178,2]
[351032100,1738302634298,-500.0,0.00019178,2]
[351032101,1738302634308,-616.07,0.00019178,2]
[351032102,1738302634317,-500.0,0.00019178,2]
[351032103,1738302634327,-500.0,0.00019178,2]
[351032104,1738302634337,-231.06408965,0.00019178,2]
[351032105,1738302634347,-500.0,0.00019178,2]
[351032106,1738302634356,-548.59,0.00019178,2]
[351032107,1738302634367,-500.0,0.00019178,2]
[351032108,1738302634377,-192.96652673,0.00019178,2]
[351032109,1738302634387,-560.92,0.00019178,2]
[351032110,1738302634396,-500.0,0.00019178,2]
[351032111,1738302634406,-1509.23,0.00019178,2]
[351032112,1738302634416,-500.0,0.00019178,2]
[351032113,1738302634426,-1193.37,0.00019178,2]
[351032114,1738302634436,-506.48965764,0.00019178,2]
[351032115,1738302634446,-1339.7,0.00019178,2]
[351032116,1738302634456,-500.0,0.00019178,2]
[351032117,1738302634467,-500.0,0.00019178,2]
[351032118,1738302634477,-828.02,0.00019178,2]
[351032119,1738302634488,-500.0,0.00019178,2]
[351032120,1738302634499,-500.0,0.00019178,2]
[351032121,1738302634512,-1195.92,0.00019178,2]
[351032122,1738302634523,-834.15,0.00019178,2]
[351032123,1738302634533,-500.0,0.00019178,2]
[351032124,1738302634543,-500.0,0.00019178,2]
[351032125,1738302634554,-500.0,0.00019178,2]
[351032126,1738302634564,-500.0,0.00019178,2]
[351032127,1738302634574,-553.18,0.00019178,2]
[351032128,1738302634585,-652.2,0.00019178,2]
[351032129,1738302634595,-683.82,0.00019178,2]
[351032130,1738302634605,-500.0,0.00019178,2]
[351032131,1738302634616,-500.0,0.00019178,2]
[351032132,1738302634626,-545.65,0.00019178,2]
[351032133,1738302634636,-500.0,0.00019178,2]
[351032134,1738302634646,-500.0,0.00019178,2]
[351032135,1738302634656,-500.0,0.00019178,2]
[351032136,1738302634665,-500.0,0.00019178,2]
[351032137,1738302634675,-1174.38,0.00019178,2]
[351032138,1738302634685,-618.04,0.00019178,2]
[351032139,1738302634695,-604.15,0.00019178,2]
[351032140,1738302634705,-500.0,0.00019178,2]
[351032141,1738302634714,-500.0,0.00019178,2]
[351032142,1738302634724,-330.38630028,0.00019178,2]
[351032143,1738302634734,-573.61,0.00019178,2]
[351032144,1738302634744,-1527.3,0.00019178,2]
[351032145,1738302634754,-500.0,0.00019178,2]
[351032146,1738302634763,-526.87,0.00019178,2]
[351032147,1738302634773,-500.0,0.00019178,2]
[351032148,1738302634783,-500.0,0.00019178,2]
[351032149,1738302634793,-1262.98,0.00019178,2]
[351032150,1738302634803,-597.11,0.00019178,2]
[351032151,1738302634813,-500.0,0.00019178,2]
[351032152,1738302634826,-500.0,0.00019178,2]
[351032153,1738302634837,-515.97,0.00019178,2]
[351032154,1738302634847,-787.14,0.00019178,2]
[351032155,1738302634857,-500.0,0.00019178,2]
[351032156,1738302634867,-558.95,0.00019178,2]
[351032157,1738302634876,-500.0,0.00019178,2]
[351032158,1738302634886,-1542.1,0.00019178,2]
[351032159,1738302634896,-585.15,0.00019178,2]
[351032160,1738302634906,-500.0,0.00019178,2]
[351032161,1738302634916,-986.49,0.00019178,2]
[351032162,1738302634925,-500.0,0.00019178,2]
[351032163,1738302634935,-500.0,0.00019178,2]
[351032164,1738302634946,-606.1,0.00019178,2]
[351032165,1738302634956,-740.69,0.00019178,2]
[351032166,1738302634966,-903.39,0.00019178,2]
[351032167,1738302634976,-981.44,0.00019178,2]
[351032168,1738302634987,-1022.85,0.00019178,2]
[351032169,1738302634997,-150.823464,0.00019178,2]
[351032170,1738302635008,-620.13,0.00019178,2]
[351032171,1738302635019,-500.0,0.00019178,2]
[351032172,1738302635029,-577.34,0.00019178,2]
[351032173,1738302635039,-500.0,0.00019178,2]
[351032174,1738302635050,-500.0,0.00019178,2]
[351032175,1738302635061,-717.83,0.00019178,2]
[351032176,1738302635072,-500.0,0.00019178,2]
[351032177,1738302635082,-1065.81,0.00019178,2]
[351032178,1738302635093,-560.57,0.00019178,2]
[351032179,1738302635103,-500.0,0.00019178,2]
[351032180,1738302635114,-624.92,0.00019178,2]
[351032181,1738302635125,-500.0,0.00019178,2]
[351032182,1738302635136,-971.16,0.00019178,2]
[351032183,1738302635147,-500.0,0.00019178,2]
[351032184,1738302635164,-534.99,0.00019178,2]
[351032185,1738302635176,-608.32,0.00019178,2]
[351032186,1738302635187,-500.0,0.00019178,2]
[351032187,1738302635199,-909.28,0.00019178,2]
[351032188,1738302635210,-500.0,0.00019178,2]
[351032189,1738302635221,-812.17,0.00019178,2]
[351032190,1738302635233,-627.46,0.00019178,2]
[351032191,1738302635245,-1251.34,0.00019178,2]
[351032192,1738302635257,-500.0,0.00019178,2]
[351032193,1738302635269,-500.0,0.00019178,2]
[351032194,1738302635281,-500.0,0.00019178,2]
[351032195,1738302635292,-500.0,0.00019178,2]
[351032196,1738302635303,-500.0,0.00019178,2]
[351032197,1738302635314,-1038.11,0.00019178,2]
[351032198,1738302635325,-900.52,0.00019178,2]
[351032199,1738302635337,-500.0,0.00019178,2]
[351032200,1738302635349,-626.07,0.00019178,2]
[351032201,1738302635360,-1237.37,0.00019178,2]
[351032202,1738302635371,-926.46,0.00019178,2]
[351032203,1738302635382,-1321.28,0.00019178,2]
[351032204,1738302635393,-500.0,0.00019178,2]
[351032205,1738302635404,-500.0,0.00019178,2]
[351032206,1738302635416,-500.0,0.00019178,2]
[351032207,1738302635426,-500.0,0.00019178,2]
[351032208,1738302635437,-500.0,0.00019178,2]
[351032209,1738302635450,-560.07,0.00019178,2]
[351032210,1738302635461,-1699.0,0.00019178,2]
[351032211,1738302635473,-1699.0,0.00019178,2]
[351032212,1738302635484,-1699.0,0.00019178,2]
[351032213,1738302635496,-1699.0,0.00019178,2]
[351032214,1738302635509,-1699.0,0.00019178,2]
[351032215,1738302635521,-1699.0,0.00019178,2]
[351032216,1738302635533,-1699.0,0.00019178,2]
[351032217,1738302635546,-1699.0,0.00019178,2]
[351032218,1738302635557,-1699.0,0.00019178,2]
[351032219,1738302635568,-1699.0,0.00019178,2]
[351032220,1738302635580,-1699.0,0.00019178,2]
[351032221,1738302635592,-1089.91,0.00019178,2]
[351032222,1738302635603,-500.0,0.00019178,2]
[351032223,1738302635617,-1699.0,0.00019178,2]
[351032224,1738302635627,-1699.0,0.00019178,2]
[351032225,1738302635638,-1699.0,0.00019178,2]
[351032226,1738302635648,-1699.0,0.00019178,2]
[351032227,1738302635658,-1699.0,0.00019178,2]
[351032228,1738302635668,-994.81,0.00019178,2]
[351032229,1738302635678,-1490.3,0.00019178,2]
[351032230,1738302635688,-500.0,0.00019178,2]
[351032231,1738302635697,-641.19,0.00019178,2]
[351032232,1738302635708,-859.57,0.00019178,2]
[351032233,1738302635718,-579.27,0.00019178,2]
[351032234,1738302635727,-550.2,0.00019178,2]
[351032235,1738302635737,-500.0,0.00019178,2]
[351032236,1738302635746,-760.46,0.00019178,2]
[351032237,1738302635756,-570.99,0.00019178,2]
[351032238,1738302635765,-500.0,0.00019178,2]
[351032239,1738302635775,-500.0,0.00019178,2]
[351032240,1738302635785,-500.0,0.00019178,2]
[351032241,1738302635795,-500.0,0.00019178,2]
[351032242,1738302635805,-500.0,0.00019178,2]
[351032243,1738302635814,-1194.14,0.00019178,2]
[351032244,1738302635824,-536.26,0.00019178,2]
[351032245,1738302635833,-500.0,0.00019178,2]
[351032246,1738302635842,-691.64,0.00019178,2]
[351032247,1738302635852,-500.0,0.00019178,2]
[351032248,1738302635861,-744.94,0.00019178,2]
[351032249,1738302635872,-500.0,0.00019178,2]
[351032250,1738302635884,-706.22,0.00019178,2]
[351032251,1738302635894,-871.53,0.00019178,2]
[351032252,1738302635906,-500.0,0.00019178,2]
[351032253,1738302635915,-500.0,0.00019178,2]
[351032254,1738302635924,-1636.33,0.00019178,2]
[351032255,1738302635935,-928.93,0.00019178,2]
[351032256,1738302635946,-500.02,0.00019178,2]
[351032257,1738302635957,-729.26,0.00019178,2]
[351032258,1738302635967,-996.78,0.00019178,2]
[351032259,1738302635977,-500.0,0.00019178,2]
[351032260,1738302635987,-1150.62,0.00019178,2]
[351032261,1738302635997,-692.84,0.00019178,2]
[351032262,1738302636006,-500.0,0.00019178,2]
[351032263,1738302636016,-1465.04,0.00019178,2]
[351032264,1738302636266,-500.0,0.00019178,2]
[351032265,1738302636278,-808.14,0.00019178,2]
[351032266,1738302636289,-1515.55,0.00019178,2]
[351032267,1738302636300,-665.53,0.00019178,2]
[351032268,1738302636310,-500.0,0.00019178,2]
[351032269,1738302636320,-500.0,0.00019178,2]
[351032270,1738302636331,-500.0,0.00019178,2]
[351032271,1738302636354,-500.0,0.00019178,2]
[351032272,1738302636371,-592.49,0.00019178,2]
[351032273,1738302636381,-500.0,0.00019178,2]
[351032274,1738302636392,-500.0,0.00019178,2]
[351032275,1738302636401,-500.0,0.00019178,2]
[351032276,1738302636412,-1296.32,0.00019178,2]
[351032277,1738302636421,-828.71,0.00019178,2]
[351032278,1738302636432,-500.0,0.00019178,2]
[351032279,1738302636441,-500.0,0.00019178,2]
[351032280,1738302636452,-500.0,0.00019178,2]
[351032281,1738302636461,-564.86,0.00019178,2]
[351032282,1738302636471,-589.55,0.00019178,2]
[351032283,1738302636481,-632.81,0.00019178,2]
[351032284,1738302636490,-1225.26,0.00019178,2]
[351032285,1738302636502,-500.0,0.00019178,2]
[351032286,1738302636515,-500.0,0.00019178,2]
[351032287,1738302636525,-824.54,0.00019178,2]
[351032288,1738302636535,-863.34,0.00019178,2]
[351032289,1738302636547,-504.39,0.00019178,2]
[351032290,1738302636557,-500.0,0.00019178,2]
[351032291,1738302636567,-500.0,0.00019178,2]
[351032292,1738302636576,-500.0,0.00019178,2]
[351032293,1738302636586,-510.02101582,0.00019178,2]
[351032294,1738302636596,-900.29,0.00019178,2]
[351032295,1738302636607,-500.0,0.00019178,2]
[351032296,1738302636617,-500.0,0.00019178,2]
[351032297,1738302636627,-500.0,0.00019178,2]
[351032298,1738302636637,-500.0,0.00019178,2]
[351032299,1738302636647,-500.0,0.00019178,2]
[351032300,1738302636657,-655.9,0.00019178,2]
[351032301,1738302636667,-500.0,0.00019178,2]
[351032302,1738302636677,-500.0,0.00019178,2]
[351032303,1738302636687,-613.6,0.00019178,2]
[351032304,1738302636696,-500.0,0.00019178,2]
[351032305,1738302636707,-500.0,0.00019178,2]
[351032306,1738302636718,-1377.54,0.00019178,2]
[351032307,1738302636728,-1943.55,0.00019178,2]
[351032308,1738302636737,-500.0,0.00019178,2]
[351032309,1738302636748,-500.0,0.00019178,2]
[351032310,1738302636759,-500.0,0.00019178,2]
[351032311,1738302636769,-500.0,0.00019178,2]
[351032312,1738302636779,-1354.77,0.00019178,2]
[351032313,1738302636790,-500.0,0.00019178,2]
[351032314,1738302636800,-500.0,0.00019178,2]
[351032315,1738302636809,-946.02,0.00019178,2]
[351032316,1738302636819,-500.0,0.00019178,2]
[351032317,1738302636829,-500.0,0.00019178,2]
[351032318,1738302636839,-1541.47,0.00019178,2]
[351032319,1738302636849,-507.45591572,0.00019178,2]
[351032320,1738302636861,-1088.91,0.00019178,2]
[351032321,1738302636872,-500.0,0.00019178,2]